fUSD/lending_fUSD_20240927
["ID","MTS","AMOUNT","RATE_DAILY","PERIOD"]
[339254394,1727406633259,-232.15924502,0.000128,2]
[339254395,1727406633268,-232.15924502,0.000128,2]
[339254396,1727406633277,-232.15924502,0.000128,2]
[339254397,1727406633288,-232.15924502,0.000128,2]
[339254398,1727406633297,-232.15924502,0.000128,2]
[339254399,1727406633307,-232.15924502,0.000128,2]
[339254400,1727406633316,-232.15924502,0.000128,2]
[339254401,1727406633326,-232.15924502,0.000128,2]
[339254402,1727406633335,-232.15924502,0.000128,2]
[339254403,1727406633344,-232.15924502,0.000128,2]
[339254404,1727406633353,-232.15924502,0.000128,2]
[339254405,1727406633363,-232.15924502,0.000128,2]
[339254406,1727406633373,-1000.45645981,0.000128,2]
[339254407,1727406633382,-232.15924502,0.000128,2]
[339254408,1727406633392,-232.15924502,0.000128,2]
[339254409,1727406633401,-232.65,0.000128,2]
[339254410,1727406633411,-233.61868734,0.000128,2]
[339254411,1727406633421,-233.61868734,0.000128,2]
[339254412,1727406633430,-233.61868734,0.000128,2]
[339254413,1727406633439,-233.61868734,0.000128,2]
[339254414,1727406633449,-233.61868734,0.000128,2]
[339254415,1727406633458,-233.61868734,0.000128,2]
[339254416,1727406633467,-233.61868734,0.000128,2]
[339254417,1727406633476,-233.61868734,0.000128,2]
[339254418,1727406633486,-233.61868734,0.000128,2]
[339254419,1727406633495,-233.61868734,0.000128,2]
[339254420,1727406633506,-233.61868734,0.000128,2]
[339254421,1727406633516,-233.61868734,0.000128,2]
[339254422,1727406633525,-233.61868734,0.000128,2]
[339254423,1727406633535,-233.61868734,0.000128,2]
[339254424,1727406633544,-233.61868734,0.000128,2]
[339254425,1727406633553,-233.61868734,0.000128,2]
[339254426,1727406633563,-233.61868734,0.000128,2]
[339254427,1727406633572,-233.61868734,0.000128,2]
[339254428,1727406633582,-233.61868734,0.000128,2]
[339254429,1727406633592,-234.11,0.000128,2]
[339254430,1727406633601,-150.0,0.00012825,2]
[339254431,1727406633610,-183.0,0.00012827,2]
[339254432,1727406633620,-150.0,0.00012836,2]
[339254433,1727406633630,-150.0,0.00012856,2]
[339254434,1727406633639,-296.5586038,0.00012873,2]
[339254435,1727406633649,-500.0,0.00012873,2]
[339254436,1727406633658,-500.0,0.00012873,2]
[339254437,1727406633668,-200.68730767,0.00012873,2]
[339254438,1727406633677,-172.324,0.00012873,2]
[339254439,1727406633687,-312.592,0.00012873,2]
[339254440,1727406633696,-500.0,0.00012876,2]
[339254441,1727406633705,-500.0,0.00012876,2]
[339254442,1727406633714,-506.12991686,0.00012876,2]
[339254443,1727406633724,-509.61807422,0.00012876,2]
[339254444,1727406633734,-500.0,0.00012876,2]
[339254445,1727406633743,-501.4105774,0.00012876,2]
[339254446,1727406633753,-500.0,0.00012876,2]
[339254447,1727406633762,-500.0,0.00012876,2]
[339254448,1727406633771,-500.0,0.00012876,2]
[339254449,1727406633780,-500.0,0.00012876,2]
[339254450,1727406633790,-500.0,0.00012876,2]
[339254451,1727406633799,-500.0,0.00012876,2]
[339254452,1727406633809,-500.0,0.00012876,2]
[339254453,1727406633818,-500.0,0.00012876,2]
[339254454,1727406633832,-500.0,0.00012876,2]
[339254455,1727406633842,-535.55101822,0.00012876,2]
[339254456,1727406633851,-507.19853061,0.00012876,2]
[339254457,1727406633860,-504.65122726,0.00012876,2]
[339254458,1727406633870,-153.83,0.00012889,2]
[339254459,1727406633880,-72733.94414156,0.0001289,2]
[339254460,1727406633892,-899.999998,0.0001289,2]
[339254461,1727406633904,-255.5570155,0.0001289,2]
[339254462,1727406633917,-609.86344662,0.0001289,2]
[339254463,1727406633928,-65091.85555532,0.0001289,2]
[339254464,1727406633937,-153.83,0.0001289,2]
[339254465,1727406633946,-153.83,0.0001289,2]
[339254466,1727406633956,-153.83,0.0001289,2]
[339254467,1727406633965,-153.83,0.0001289,2]
[339254468,1727406633974,-153.83,0.0001289,2]
[339254469,1727406633983,-153.83,0.0001289,2]
[339254470,1727406633995,-500.0,0.00012894,2]
[339254471,1727406634005,-520.44546284,0.00012894,2]
[339254472,1727406634013,-500.0,0.00012894,2]
[339254473,1727406634023,-503.19626463,0.00012894,2]
[339254474,1727406634032,-500.0,0.00012894,2]
[339254475,1727406634042,-500.0,0.00012894,2]
[339254476,1727406634052,-500.0,0.00012894,2]
[339254477,1727406634062,-612.98323081,0.00012894,2]
[339254478,1727406634071,-500.0,0.00012894,2]
[339254479,1727406634081,-504.6402177,0.00012894,2]
[339254480,1727406634090,-500.0,0.00012894,2]
[339254481,1727406634100,-503.06853668,0.00012894,2]
[339254482,1727406634109,-500.0,0.00012894,2]
[339254483,1727406634118,-500.0,0.00012894,2]
[339254484,1727406634127,-508.90202691,0.00012894,2]
[339254485,1727406634136,-43389.06887828,0.00012895,2]
[339254487,1727406638571,-245.51,0.0001269,2]
[339254488,1727406638581,-9.8377856,0.0001271,2]
[339254489,1727406638594,-235.6722144,0.0001271,2]
[339254490,1727406638604,-19.3277856,0.0001272,2]
[339254491,1727406638753,-606.50393053,0.0001272,2]
[339254492,1727406638766,-456.97928387,0.0001272,2]
[339254493,1727406638777,-196.69972874,0.00012785,2]
[339254494,1727406638788,-48.81027126,0.00012785,2]
[339254495,1727406638800,-1126.00265977,0.00012795,2]
[339254496,1727406638809,-2761.23318415,0.00012895,2]
[339254497,1727406638819,-6017.73262,0.00012895,2]
[339254498,1727406638834,-626.16993068,0.00012895,2]
[339254499,1727406638845,-2735.53908701,0.00012895,2]
[339254500,1727406638927,-1126.00265977,0.00012796,2]
[339254501,1727406638936,-9792.28417838,0.00012895,2]
[339254502,1727406638946,-3378.4145388,0.00012895,2]
[339254503,1727406638955,-11128.157236,0.00012895,2]
[339254504,1727406638964,-2620.243599,0.00012899,2]
[339254505,1727406638974,-2381.89658873,0.00012899,2]
[339254506,1727406638983,-1000.0,0.00012899,2]
[339254507,1727406638993,-872.5899,0.00012899,2]
[339254508,1727406639002,-276.56308758,0.00012899,3]
[339254509,1727406639011,-504.6584921,0.00012899,2]
[339254510,1727406639021,-524.22599539,0.00012899,2]
[339254511,1727406639030,-500.0,0.00012899,2]
[339254512,1727406639039,-500.0,0.00012899,2]
[339254513,1727406639048,-540.41125626,0.00012899,2]
[339254514,1727406639057,-1000.0,0.00012899,2]
[339254515,1727406639067,-352.31059426,0.00012899,2]
[339254516,1727406639076,-500.0,0.00012899,2]
[339254517,1727406639085,-500.0,0.00012899,2]
[339254518,1727406639094,-500.0,0.00012899,2]
[339254519,1727406639103,-182.52894125,0.00012899,2]
[339254520,1727406639113,-500.0,0.00012899,2]
[339254521,1727406639122,-500.0,0.00012899,2]
[339254522,1727406639131,-500.0,0.00012899,2]
[339254523,1727406639141,-500.0,0.00012899,2]
[339254524,1727406639150,-500.0,0.00012899,2]
[339254525,1727406639159,-500.0,0.00012899,2]
[339254526,1727406639168,-500.0,0.00012899,2]
[339254527,1727406639177,-500.0,0.00012899,2]
[339254528,1727406639187,-500.0,0.00012899,2]
[339254529,1727406639196,-500.0,0.00012899,2]
[339254530,1727406639206,-500.0,0.00012899,2]
[339254531,1727406639215,-500.0,0.00012899,2]
[339254532,1727406639226,-306.21237562,0.00012899,2]
[339254533,1727406639237,-500.0,0.00012899,2]
[339254534,1727406639246,-633.93246161,0.00012899,2]
[339254535,1727406639256,-423.05206181,0.00012899,2]
[339254536,1727406639265,-284.72548562,0.00012899,2]
[339254537,1727406639275,-500.0,0.00012899,2]
[339254538,1727406639284,-500.0,0.00012899,2]
[339254539,1727406639294,-500.0,0.00012899,2]
[339254540,1727406639303,-500.0,0.00012899,2]
[339254541,1727406639312,-500.0,0.00012899,2]
[339254542,1727406639321,-500.0,0.00012899,2]
[339254543,1727406639330,-500.0,0.00012899,2]
[339254544,1727406639339,-500.0,0.00012899,2]
[339254545,1727406639348,-500.0,0.00012899,2]
[339254546,1727406639358,-500.0,0.00012899,2]
[339254547,1727406639368,-218.40828746,0.00012899,2]
[339254548,1727406639378,-525.23693473,0.00012899,2]
[339254549,1727406639388,-301.25980209,0.00012899,2]
[339254550,1727406639400,-500.0,0.00012899,2]
[339254551,1727406639410,-2000.0,0.00012899,2]
[339254552,1727406639420,-535.826,0.00012899,2]
[339254553,1727406639430,-431.958,0.00012899,2]
[339254554,1727406639441,-619.651,0.00012899,2]
[339254555,1727406639450,-927.346,0.00012899,2]
[339254556,1727406639460,-554.447,0.00012899,2]
[339254557,1727406639469,-809.0,0.00012899,2]
[339254558,1727406639478,-553.0,0.00012899,2]
[339254559,1727406639487,-1903.0,0.00012899,2]
[339254560,1727406639496,-808.0,0.00012899,2]
[339254561,1727406639507,-1918.024,0.00012899,2]
[339254562,1727406639518,-3347.0,0.00012899,2]
[339254563,1727406639528,-353742.4250515,0.000129,2]
[339254564,1727406639539,-1000556.28632316,0.000129,2]
[339254565,1727406639555,-835.77,0.000129,2]
[339254612,1727406640595,-3260.3278724,0.000129,2]
[339254614,1727406640609,-1598.8021276,0.000129,2]
[339254617,1727406640624,-1044.60038167,0.000129,2]
[339254619,1727406640638,-326.6438887,0.000129,2]
[339254622,1727406640652,-541.12500001,0.000129,2]
[339254926,1727406643797,-16876.14207741,0.000129,2]
[339254929,1727406643811,-64658.78609592,0.000129,2]
[339255068,1727406646639,-823.75820295,0.00012797,2]
[339255086,1727406770778,150.0,0.0001389,30]
[339255087,1727407135692,229.9,9.895e-05,2]
[339255088,1727407296011,150.0,0.0001389,30]
[339255089,1727407298595,292.02,0.00010959,2]
[339255090,1727407307728,1050.0,0.00011,2]
[339255091,1727407316597,-5008.45,0.00011155,4]
[339255092,1727407316618,-1000.0,0.00011786,2]
[339255093,1727407316638,-250.0,0.00011845,2]
[339255094,1727407316658,-174.24,0.00011845,2]
[339255095,1727407316679,-214.53,0.00011852,2]
[339255096,1727407316699,-2716.87,0.00011861,2]
[339255097,1727407316718,-250.0,0.00011864,2]
[339255098,1727407316738,-250.0,0.00011889,2]
[339255099,1727407316760,-391.3,0.00011898,2]
[339255100,1727407316781,-178.91,0.00011907,2]
[339255101,1727407316803,-404.05,0.00011929,2]
[339255102,1727407316826,-499.99,0.00011992,2]
[339255103,1727407316847,-229.9,0.00012159,2]
[339255104,1727407316867,-195.355613,0.00012433,2]
[339255105,1727407316890,-162.846353,0.00012433,2]
[339255106,1727407316914,-162.846353,0.0001264,2]
[339255107,1727407316936,-6567.7151,0.00012696,2]
[339255108,1727407316962,-212.16434967,0.00012758,2]
[339255109,1727407316983,-150.0,0.00012799,2]
[339255110,1727407317002,-25462.2775,0.000128,2]
[339255111,1727407317026,-2500.0,0.000128,2]
[339255112,1727407317046,-334.76198819,0.000128,2]
[339255113,1727407317066,-199.63233719,0.000128,2]
[339255114,1727407317087,-743.07337822,0.000128,2]
[339255115,1727407317107,-4806.2550959,0.000128,2]
[339255116,1727407317126,-1500.0,0.00012801,2]
[339255117,1727407317146,-162.846353,0.00012847,2]
[339255118,1727407317166,-284.25484156,0.00012853,2]
[339255119,1727407317186,-315.32,0.0001287,2]
[339255120,1727407317206,-500.0,0.00012873,2]
[339255121,1727407317226,-150.0,0.00012881,2]
[339255122,1727407317246,-17129.37,0.0001289,2]
[339255123,1727407317267,-7644.80776673,0.00012894,2]
[339255124,1727407317291,-331.9462887,0.00012895,2]
[339255125,1727407317311,-3345.7996541,0.00012895,2]
[339255126,1727407317333,-11020.7270905,0.00012895,2]
[339255127,1727407317354,-1190.94829437,0.00012899,2]
[339255128,1727407317376,-211.30469908,0.00012899,2]
[339255129,1727407317396,-1000.0,0.00012899,2]
[339255130,1727407317416,-1000.0,0.00012899,2]
[339255131,1727407317437,-500.0,0.00012899,2]
[339255132,1727407317458,-500.0,0.00012899,2]
[339255133,1727407317478,-500.0,0.00012899,2]
[339255134,1727407317497,-500.0,0.00012899,2]
[339255135,1727407317516,-440.14000516,0.00012899,2]
[339255136,1727407317549,-150.0,0.00012899,2]
[339255137,1727407317571,-301639.586493,0.000129,2]
[339255138,1727407317595,-2106755.56648682,0.000129,2]
[339255139,1727407317620,-7364609.81364843,0.000129,2]
[339255140,1727407317640,-158.535395,0.000129,2]
[339255141,1727407317660,-158.535396,0.000129,2]
[339255142,1727407317679,-159.189157,0.000129,2]
[339255143,1727407317703,-3729736.14036238,0.000129,2]
[339255144,1727407495597,220.05053256,0.00011064,2]
[339255184,1727407802532,296.02,9.275e-05,2]
[339255194,1727407831733,-500.0,0.00011164,2]
[339255195,1727407831742,-500.0,0.00011164,2]
[339255196,1727407831751,-500.0,0.00011238,2]
[339255197,1727407831761,-250.0,0.00011279,2]
[339255198,1727407831770,-1332.03617125,0.0001132,2]
[339255199,1727407831870,-1100.52168804,0.0001132,2]
[339255200,1727407832039,-1057.28475415,0.0001132,2]
[339255204,1727407837936,-275.14,0.00011211,2]
[339255205,1727407837947,-40558.69844315,0.0001132,2]
[339255206,1727407837956,-176.63,0.0001132,2]
[339255207,1727407837966,-448.97,0.00011361,2]
[339255208,1727407837976,-264.54,0.00011497,2]
[339255209,1727407837986,-296.02,0.00011539,2]
[339255210,1727407837995,-150.0,0.00011589,2]
[339255211,1727407838005,-7215.94416971,0.00011714,2]
[339255212,1727407838016,-153.97,0.0001187,2]
[339255213,1727407838025,-153.97,0.00011877,2]
[339255214,1727407838034,-153.97,0.00011883,2]
[339255215,1727407838045,-153.97,0.0001189,2]
[339255216,1727407838054,-996.65,0.0001189,2]
[339255217,1727407838065,-153.97,0.00011896,2]
[339255218,1727407838075,-499.99,0.00011896,2]
[339255220,1727407838085,-300.0,0.000119,4]
[339255221,1727407838095,-153.97,0.00011903,2]
[339255222,1727407838106,-153.97,0.0001191,2]
[339255223,1727407838117,-153.97,0.00011916,2]
[339255224,1727407838128,-153.97,0.00011923,2]
[339255225,1727407838137,-153.97,0.00011929,2]
[339255226,1727407838147,-250.0,0.00011956,2]
[339255227,1727407838156,-250.0,0.00011967,2]
[339255228,1727407838166,-446.62,0.0001199,2]
[339255229,1727407838176,-700.0,0.00012,4]
[339255230,1727407838186,-150.0,0.0001203,2]
[339255231,1727407838195,-18768.04,0.00012031,2]
[339255232,1727407838204,-535.9939289,0.00012083,2]
[339255233,1727407838215,-1000.0,0.000121,4]
[339255234,1727407838226,-1400.0,0.000122,4]
[339255235,1727407838237,-1251.29045375,0.000123,2]
[339255236,1727407838246,-1700.0,0.000123,4]
[339255237,1727407838257,-300.0,0.000124,4]
[339255238,1727407838267,-212.610661,0.00012433,2]
[339255239,1727407838277,-162.846354,0.00012433,2]
[339255240,1727407838287,-168.66,0.00012445,2]
[339255241,1727407838297,-300.0,0.000125,4]
[339255242,1727407838307,-474.48,0.00012537,2]
[339255243,1727407838316,-150.0,0.00012537,2]
[339255244,1727407838327,-150.241,0.00012537,2]
[339255245,1727407838337,-13614.371,0.00012537,2]
[339255246,1727407838347,-1147.0,0.00012537,2]
[339255247,1727407838541,-300.0,0.000126,4]
[339255248,1727407838550,-157.85,0.00012647,2]
[339255249,1727407838560,-300.0,0.000127,4]
[339255250,1727407838570,-150.0,0.00012749,2]
[339255251,1727407838579,-150.0,0.00012756,2]
[339255252,1727407838590,-150.0,0.00012764,2]
[339255253,1727407838599,-308900.79989511,0.0001278,2]
[339255254,1727407838612,-784.39333094,0.0001278,2]
[339255255,1727407838623,-291.69999996,0.0001278,2]
[339255256,1727407838634,-33060.85082986,0.0001278,2]
[339255257,1727407838645,-13167.5,0.0001278,2]
[339255258,1727407838658,-10829.05496024,0.0001278,2]
[339255259,1727407838667,-150.0,0.00012787,2]
[339255260,1727407838676,-500.0,0.00012797,2]
[339255261,1727407838686,-3215.6699,0.000128,2]
[339255262,1727407838695,-913.7538,0.000128,2]
[339255263,1727407838705,-3854.9145,0.000128,2]
[339255264,1727407838715,-2500.0,0.000128,2]
[339255265,1727407838724,-3062.215,0.000128,2]
[339255266,1727407838733,-153.20823102,0.000128,2]
[339255267,1727407838742,-153.20823102,0.000128,2]
[339255268,1727407838751,-153.20823102,0.000128,2]
[339255269,1727407838761,-153.20823102,0.000128,2]
[339255270,1727407838770,-153.20823102,0.000128,2]
[339255271,1727407838780,-153.20823102,0.000128,2]
[339255272,1727407838789,-153.20823102,0.000128,2]
[339255273,1727407838798,-153.20823102,0.000128,2]
[339255274,1727407838808,-153.7,0.000128,2]
[339255275,1727407838817,-247.14171304,0.000128,2]
[339255276,1727407838826,-247.14171304,0.000128,2]
[339255277,1727407838835,-247.14171304,0.000128,2]
[339255278,1727407838845,-247.14171304,0.000128,2]
[339255279,1727407838854,-247.14171304,0.000128,2]
[339255280,1727407838863,-247.14171304,0.000128,2]
[339255281,1727407838873,-247.14171304,0.000128,2]
[339255282,1727407838882,-247.14171304,0.000128,2]
[339255283,1727407838891,-247.14171304,0.000128,2]
[339255284,1727407838900,-247.14171304,0.000128,2]
[339255285,1727407838910,-247.14171304,0.000128,2]
[339255286,1727407838920,-247.14171304,0.000128,2]
[339255287,1727407838930,-247.14171304,0.000128,2]
[339255288,1727407838939,-247.14171304,0.000128,2]
[339255289,1727407838950,-247.14171304,0.000128,2]
[339255290,1727407838960,-247.14171304,0.000128,2]
[339255291,1727407838969,-247.14171304,0.000128,2]
[339255292,1727407838979,-247.14171304,0.000128,2]
[339255293,1727407838990,-247.14171304,0.000128,2]
[339255294,1727407839002,-247.64,0.000128,2]
[339255295,1727407839012,-247.5194741,0.000128,2]
[339255296,1727407839023,-247.5194741,0.000128,2]
[339255297,1727407839034,-247.5194741,0.000128,2]
[339255298,1727407839045,-247.5194741,0.000128,2]
[339255299,1727407839054,-247.5194741,0.000128,2]
[339255300,1727407839065,-247.5194741,0.000128,2]
[339255301,1727407839075,-247.5194741,0.000128,2]
[339255302,1727407839086,-247.5194741,0.000128,2]
[339255303,1727407839097,-247.5194741,0.000128,2]
[339255304,1727407839107,-247.5194741,0.000128,2]
[339255305,1727407839118,-247.5194741,0.000128,2]
[339255306,1727407839129,-247.5194741,0.000128,2]
[339255307,1727407839139,-247.5194741,0.000128,2]
[339255308,1727407839150,-247.5194741,0.000128,2]
[339255309,1727407839161,-247.5194741,0.000128,2]
[339255310,1727407839170,-247.5194741,0.000128,2]
[339255311,1727407839179,-247.5194741,0.000128,2]
[339255312,1727407839189,-247.5194741,0.000128,2]
[339255313,1727407839198,-247.5194741,0.000128,2]
[339255314,1727407839208,-248.01,0.000128,2]
[339255315,1727407839217,-2003.21473602,0.000128,2]
[339255316,1727407839226,-800.0,0.000128,4]
[339255317,1727407839235,-206.54651259,0.000128,2]
[339255318,1727407839244,-159.83,0.00012889,2]
[339255319,1727407839253,-292.32664863,0.0001289,2]
[339255320,1727407839264,-14323.54062326,0.0001289,2]
[339255321,1727407839274,-3627.74357406,0.00012895,2]
[339255322,1727407839284,-500.0,0.00012899,2]
[339255323,1727407839294,-157.81057349,0.00012899,2]
[339255324,1727407839304,-500.0,0.00012899,2]
[339255325,1727407839313,-535.1553191,0.00012899,2]
[339255326,1727407839323,-150.88728716,0.00012899,2]
[339255327,1727407839333,-1917.59684688,0.00012899,2]
[339255328,1727407839342,-1096.38479335,0.00012899,3]
[339255329,1727407839352,-1096.38479335,0.00012899,3]
[339255330,1727407839362,-1096.38479335,0.00012899,3]
[339255331,1727407839371,-1096.38479335,0.00012899,3]
[339255332,1727407839380,-500.0,0.00012899,2]
[339255333,1727407839389,-2008.59456738,0.00012899,2]
[339255334,1727407839399,-1081.0,0.00012899,2]
[339255335,1727407839410,-285.452,0.00012899,2]
[339255336,1727407839419,-5869.0,0.00012899,2]
[339255337,1727407839427,-150.49,0.000129,2]
[339255338,1727407839437,-554.0,0.000129,2]
[339255339,1727407839446,-38071.809828,0.000129,2]
[339255340,1727407839458,-868.46789177,0.000129,2]
[339255341,1727407839473,-13237.85590555,0.000129,2]
[339255342,1727407839484,-22987.75951898,0.000129,2]
[339255343,1727407839503,-6620.84568957,0.000129,2]
[339255344,1727407839729,-15000.0,0.000129,2]
[339255345,1727407839740,-325.785,0.000129,2]
[339255611,1727407842847,-933.0,0.0001289,2]
[339255613,1727407842860,-1236.31996251,0.000129,2]
[339255676,1727407845634,-810.0,0.0001289,2]
[339255677,1727407845644,-4598.47626602,0.000129,2]
[339255678,1727407845656,-260.9053,0.000129,2]
[339255679,1727407845667,-260.36,0.000129,2]
[339255680,1727407845678,-3409.55267762,0.000129,2]
[339255681,1727407845689,-1006.8,0.000129,2]
[339255689,1727407846170,-1031.19108715,0.000129,2]
[339255690,1727407846181,-639.26,0.000129,2]
[339255691,1727407871173,150.0,0.0001389,30]
[339255692,1727407981578,165.80340481,0.00011064,2]
[339255694,1727408163755,302.06,0.00011,3]
[339255695,1727408182640,9269.95567947,0.000103,5]
[339255696,1727408182665,2242.04432053,0.000103,5]
[339255702,1727408287777,150.0,0.00011,2]
[339255707,1727408405288,155.56,0.00010959,2]
[339255708,1727408418383,201.80285421,0.00011064,2]
[339255709,1727408482319,150.0,0.0001389,30]
[339255710,1727408505197,280.97,9.634e-05,2]
[339255910,1727409031651,-500.0,0.00011164,2]
[339255911,1727409031663,-500.0,0.00011164,2]
[339255912,1727409031674,-1811.86,0.00011277,2]
[339255913,1727409031683,-513.14,0.00011304,2]
[339255914,1727409031694,-438.1,0.00011387,2]
[339255915,1727409031703,-250.0,0.00011526,2]
[339255916,1727409031714,-150.0,0.00011534,2]
[339255917,1727409031724,-154.71,0.00011544,2]
[339255918,1727409031734,-609.18,0.00011546,2]
[339255919,1727409031745,-764.59,0.00011546,2]
[339255920,1727409031755,-207.78,0.00011547,2]
[339255921,1727409031765,-250.0,0.00011548,2]
[339255922,1727409031775,-1000.0,0.00011548,2]
[339255923,1727409031784,-250.0,0.0001155,2]
[339255924,1727409031794,-226.44,0.00011552,2]
[339255925,1727409031804,-17792.18,0.00011572,2]
[339255926,1727409031814,-290.67,0.0001185,2]
[339255927,1727409031824,-280.97,0.00011898,2]
[339255928,1727409031833,-200.0,0.000119,4]
[339255929,1727409031842,-500.0,0.00012,4]
[339255930,1727409031852,-14581.43,0.0001208,4]
[339255931,1727409031861,-700.0,0.000121,4]
[339255932,1727409031871,-1000.0,0.000122,4]
[339255933,1727409031880,-1200.0,0.000123,4]
[339255934,1727409031890,-200.0,0.000124,4]
[339255935,1727409031899,-228.312558,0.00012433,2]
[339255936,1727409031909,-655.060899,0.00012433,2]
[339255937,1727409031919,-150.0,0.00012433,2]
[339255938,1727409031928,-200.0,0.000125,4]
[339255939,1727409031938,-152.38,0.00012533,2]
[339255940,1727409031948,-655.060899,0.00012588,2]
[339255941,1727409031958,-200.0,0.000126,4]
[339255943,1727409031967,-878.1952,0.0001268,2]
[339255945,1727409031977,-184.13996901,0.000127,2]
[339255947,1727409031986,-200.0,0.000127,4]
[339255949,1727409031997,-180.0,0.00012703,2]
[339255951,1727409032006,-655.060899,0.00012743,2]
[339255953,1727409032017,-4861.75817958,0.000128,2]
[339255955,1727409032033,-14599.52625575,0.000128,2]
[339255956,1727409032043,-1045.44000008,0.000128,2]
[339255957,1727409032055,-890.11270915,0.000128,2]
[339255962,1727409037819,-29047.07754972,0.000128,2]
[339255963,1727409037975,-757.258615,0.000128,2]
[339255964,1727409037996,-306.42367944,0.000128,2]
[339255965,1727409038082,-64488.67491897,0.000128,2]
[339255966,1727409038094,-7635.85806297,0.000128,2]
[339255967,1727409038105,-649.35606077,0.000128,2]
[339255968,1727409038119,-1348.31996857,0.000128,2]
[339255969,1727409038129,-236.0216,0.000128,2]
[339255970,1727409038139,-18.21782532,0.000128,2]
[339255971,1727409038151,-157.54117457,0.000128,2]
[339255972,1727409038162,-350.0,0.000128,4]
[339255973,1727409038171,-187.08610276,0.000128,2]
[339255974,1727409038180,-184.139969,0.000128,2]
[339255975,1727409038192,-1000.0,0.000128,2]
[339255976,1727409038201,-1000.0,0.000128,2]
[339255977,1727409038210,-1000.0,0.000128,2]
[339255978,1727409038220,-1000.0,0.000128,2]
[339255979,1727409038229,-1000.0,0.000128,2]
[339255980,1727409038238,-1000.0,0.000128,2]
[339255981,1727409038248,-1000.0,0.000128,2]
[339255982,1727409038257,-1000.0,0.000128,2]
[339255983,1727409038266,-1000.0,0.000128,2]
[339255984,1727409038275,-1000.0,0.000128,2]
[339255985,1727409038285,-1000.0,0.000128,2]
[339255986,1727409038294,-1000.0,0.000128,2]
[339255987,1727409038303,-1000.0,0.000128,2]
[339255988,1727409038313,-352.0,0.000128,2]
[339255989,1727409038322,-600.0,0.000128,4]
[339255990,1727409038331,-171.47177432,0.000128,2]
[339255991,1727409038341,-151.68392733,0.000128,2]
[339255992,1727409038350,-151.68392733,0.000128,2]
[339255993,1727409038359,-151.68392733,0.000128,2]
[339255994,1727409038368,-151.68392733,0.000128,2]
[339255995,1727409038378,-151.68392733,0.000128,2]
[339255996,1727409038387,-151.68392733,0.000128,2]
[339255997,1727409038397,-151.68392733,0.000128,2]
[339255998,1727409038408,-152.18,0.000128,2]
[339255999,1727409038418,-234.8062249,0.000128,2]
[339256000,1727409038428,-234.8062249,0.000128,2]
[339256003,1727409038439,-234.8062249,0.000128,2]
[339256005,1727409038448,-234.8062249,0.000128,2]
[339256007,1727409038458,-234.8062249,0.000128,2]
[339256009,1727409038468,-234.8062249,0.000128,2]
[339256011,1727409038478,-234.8062249,0.000128,2]
[339256013,1727409038487,-234.8062249,0.000128,2]
[339256015,1727409038497,-234.8062249,0.000128,2]
[339256017,1727409038506,-234.8062249,0.000128,2]
[339256019,1727409038514,-234.8062249,0.000128,2]
[339256021,1727409038523,-234.8062249,0.000128,2]
[339256023,1727409038533,-234.8062249,0.000128,2]
[339256025,1727409038543,-234.8062249,0.000128,2]
[339256027,1727409038554,-234.8062249,0.000128,2]